Cogmind - Beta 10.2 @@@ ROGUE MODE // 2020.11.20 @ 14:37:24 // Halloween2020/ForbiddenLore Player: Gregor Result: Self-destructed Performance ------------- Evolutions (1) 500 Regions Visited (3) 600 Robots Destroyed (34) 170 Value Destroyed (505) 505 Prototype IDs (3) 60 Alien Tech Used (0) 0 Bonus (114) 114 TOTAL SCORE: 1949 Bonus ------- Follower Combat Kills 127 Friendly Fire -13 Cogmind --------- Core Integrity 400/400 Matter 290/300 Energy 125/125 System Corruption 0% Temperature Cool (0) Movement Hovering (116) Ox1 Location -9/Materials Parts ------- > --- POWER (1) -------- Light Ion Engine > --- PROPULSION (2) --- Hover Unit Hover Unit > --- UTILITY (4) ------ Heat Sink Small Storage Unit Experimental Sensor Array Signal Interpreter > --- WEAPON (2) ------- EM Pulse Gun Medium Laser > --- INVENTORY (6) ---- Light Ion Engine Sensor Array EM Pulse Gun Rocket Launcher Peak State ------------ > --- POWER ------------ Light Ion Engine > --- PROPULSION ------- Hover Unit Hover Unit > --- UTILITY ---------- Heat Sink Small Storage Unit Experimental Sensor Array Signal Interpreter > --- WEAPON ----------- Medium Laser Medium Laser > --- INVENTORY -------- Light Ion Engine Hover Unit Sensor Array Rocket Launcher [Rating: 14] Favorites ----------- Power Light Ion Engine Engine Light Ion Engine Propulsion Hover Unit Leg Aluminum Leg Hover Unit Hover Unit Utility Small Storage Unit Device Heat Sink Storage Small Storage Unit Processor Targeting Computer Weapon Medium Laser Energy Gun Medium Laser Launcher Grenade Launcher Build | -11 -10 -10 -9 ------- Run | Scr Mat Min Mat Slots Evolved 2 | . . . 2 Power . | . . . . Propulsion . | . . . . Utility 2 | . . . 2 Weapon . | . . . . Parts Attached 42 | 7 24 7 4 Power 5 | 2 2 1 . Engine 5 | 2 2 1 . Core . | . . . . Reactor . | . . . . Propulsion 13 | 2 9 1 1 Treads . | . . . . Leg 6 | 2 4 . . Wheel . | . . . . Hover 7 | . 5 1 1 Flight . | . . . . Utility 7 | 1 2 2 2 Device 4 | . 1 2 1 Storage 1 | 1 . . . Processor 2 | . 1 . 1 Hackware . | . . . . Protection . | . . . . Artifact . | . . . . Weapon 17 | 2 11 3 1 Energy Gun 15 | 2 9 3 1 Energy Cannon . | . . . . Ballistic Gun . | . . . . Ballistic Cannon . | . . . . Launcher 2 | . 2 . . Special Weapon . | . . . . Impact Weapon . | . . . . Slashing Weapon . | . . . . Piercing Weapon . | . . . . Special Melee Weapon . | . . . . Unidentified Prototypes 1 | . . 1 . Parts Lost 10 | . 7 2 1 Power . | . . . . Propulsion 3 | . 2 . 1 Utility 1 | . 1 . . Weapon 6 | . 4 2 . Highest Loss Streak 6 | . 6 1 1 Average Slot Usage (%) 98 | . 96 99 100 Engine 13 | . 14 14 11 Leg 11 | . 20 . . Hover 15 | . 6 28 22 Device 12 | . 7 14 22 Storage 13 | . 14 14 11 Processor 4 | . 4 . 11 Energy Gun 24 | . 23 27 22 Launcher 1 | . 2 . . Naked Turns . | . . . . Heaviest Build 13 | 11 13 12 13 Greatest Support 20 | 20 20 12 12 Greatest Overweight (x) 2 | . 1 . 2 Average Overweight (x) . | . . . 1 Largest Inventory Capacity 6 | 6 6 6 6 Average Capacity 5 | 5 6 6 6 Most Carried 6 | 6 6 6 6 Average Carried 5 | 2 5 5 4 Final Capacity 6 | 6 6 6 6 Final Carried 6 | 6 6 6 4 Class Distribution -------------------- 100% | Mutant Dominant Class ---------------- Mutant | -10/Materials Mutant | -10/Mines Mutant | -9/Materials Resources | -11 -10 -10 -9 ----------- Run | Scr Mat Min Mat Matter Collected 735 | 231 392 82 30 Remotely . | . . . . Salvage Created 884 | . 649 119 116 Parts 55 | . 38 12 5 Haulers Intercepted 3 | . 2 . 1 Recyclers Shooed 6 | . 5 . 1 Parts Field Recycled . | . . . . Retrieved Matter . | . . . . Parts Self-Destructed . | . . . . Prevented . | . . . . Kills | -11 -10 -10 -9 ------- Run | Scr Mat Min Mat Combat Hostiles Destroyed 18 | . 12 6 . Guns 9 | . 5 4 . AOE 9 | . 7 2 . Classes Destroyed 8 | . 8 . . Worker 1 | . 1 . . Builder 2 | . 1 1 . Hauler 3 | . 2 . 1 Recycler 5 | . 4 . 1 Operator 2 | . 2 . . Watcher 3 | . 3 . . Swarmer 11 | . 5 6 . Grunt 7 | . 7 . . Best Kill Streak 6 | . 6 3 2 Combat Bots Only 5 | . 5 3 . Max Kills in Single Turn 3 | . 2 3 1 Gunslinging . | . . . . Exploded 2 | . 2 2 . Melee . | . . . . Uniques/NPCs Destroyed . | . . . . Combat | -11 -10 -10 -9 -------- Run | Scr Mat Min Mat Damage Taken 958 | . 672 214 72 Core 151 | . 77 74 . Absorbed by Shields . | . . . . Core Remaining (%) 69 | 100 . 39 . Volleys Fired 93 | . 66 15 12 Largest 2 | . 2 2 2 Hottest 100 | . 90 100 100 Shots Fired 167 | . 118 26 23 Gun 151 | . 102 26 23 Cannon . | . . . . Launcher 16 | . 16 . . Special . | . . . . Kinetic . | . . . . Thermal 97 | . 61 17 19 Explosive 16 | . 16 . . Electromagnetic 54 | . 41 9 4 Robot Hit Streak 11 | . 11 8 4 Robot Miss Streak 7 | . 7 3 3 Penetration Max . | . . . . Secondary Targets 2 | . 1 1 . Max Gunslinging Chain 1 | . 1 1 . Shots Hit Robots 100 | . 71 17 12 Core Hits 53 | . 39 7 7 Critical Hits . | . . . . Critical Kills . | . . . . Critical Parts Destroyed . | . . . . Melee Attacks . | . . . . Impact . | . . . . Slashing . | . . . . Piercing . | . . . . Sneak Attacks . | . . . . Combat Hostiles . | . . . . Follow-up Attacks . | . . . . Damage Inflicted 2199 | . 1725 297 177 Guns 1077 | . 744 156 177 Cannons . | . . . . Explosions 1122 | . 981 141 . Melee . | . . . . Ramming . | . . . . Kinetic . | . . . . Thermal 788 | . 386 252 150 Explosive 981 | . 981 . . Electromagnetic 430 | . 358 45 27 Impact . | . . . . Slashing . | . . . . Piercing . | . . . . Highest Corruption . | . . . . Average Corruption . | . . . . Corruption Purged . | . . . . Overload Shots . | . . . . Overflow Damage 123 | . 111 12 . Projectiles . | . . . . Explosions 123 | . 111 12 . Melee . | . . . . Knockbacks . | . . . . Impact . | . . . . Kinetic . | . . . . Secondary . | . . . . Self-Inflicted Damage 178 | . 139 39 . Shots 6 | . 5 1 . Rammed . | . . . . Targets Rammed . | . . . . Kicked . | . . . . Crushed . | . . . . Highest Temperature 220 | . 220 33 12 Average Temperature 49 | . 67 12 4 Received Heat Transfer 180 | . 162 . 18 Siege Activations . | . . . . Robots Corrupted . | . . . . Combat Hostiles . | . . . . Parts Fried . | . . . . Impact Corruptions . | . . . . Robots Melted . | . . . . Combat Hostiles . | . . . . Parts Melted . | . . . . Heat Transferred 1894 | . 1017 433 444 Parts Sabotaged . | . . . . Parts Stolen . | . . . . Parts Stripped . | . . . . Power Chain Reactions 2 | . . 2 . Missiles Intercepted . | . . . . Alert | -11 -10 -10 -9 ------- Run | Scr Mat Min Mat Peak Influence 280 | . 280 185 204 Initial 55 | . . 55 22 Average 100 | . 106 122 83 Maximum Alert Level 1 | . 1 . 1 Low Security (%) 96 | 100 93 100 98 Level 1 3 | . 6 . 1 Level 2 . | . . . . Level 3 . | . . . . Level 4 . | . . . . Level 5 . | . . . . High Security . | . . . . Max Security . | . . . . Squads Dispatched 5 | . 3 . 2 Investigation . | . . . . Extermination . | . . . . Reinforcement 5 | . 3 . 2 Assault . | . . . . Garrison . | . . . . Intercept . | . . . . Construction Impeded . | . . . . Haulers Reinforced . | . . . . Stealth | -11 -10 -10 -9 --------- Run | Scr Mat Min Mat Distress Signals 3 | . 2 . 1 Communications Jammed . | . . . . Distress Signals . | . . . . Times Spotted 47 | . 29 8 10 Peak Tracking Total 9 | . 9 3 6 Tactical Retreats 3 | . 3 . . Traps | -11 -10 -10 -9 ------- Run | Scr Mat Min Mat Traps Triggered 4 | . 4 . . Indirectly . | . . . . Trap Hack Attempts . | . . . . Triggered . | . . . . Disarmed . | . . . . Reprogrammed . | . . . . Reused . | . . . . Traps Extracted . | . . . . Installed . | . . . . Triggered . | . . . . Machines | -11 -10 -10 -9 ---------- Run | Scr Mat Min Mat Machines Disabled 3 | . 2 . 1 Max in Single Turn 1 | . 1 . 1 Machines Sabotaged . | . . . . Garrisons Compromised . | . . . . Overloaded Fab Kills . | . . . . Fab Network Shutdowns . | . . . . Hacking | -11 -10 -10 -9 --------- Run | Scr Mat Min Mat Machines Accessed 6 | . 5 . 1 Terminals 4 | . 3 . 1 Fabricators . | . . . . Repair Stations 1 | . 1 . . Recycling Units 1 | . 1 . . Scanalyzers . | . . . . Garrison Access . | . . . . Total Hacks 19 | . 16 . 3 Successful 13 | . 12 . 1 Failed 6 | . 4 . 2 Catastrophic . | . . . . Database Lockouts . | . . . . Manual 6 | . 3 . 3 Terminals 13 | . 10 . 3 Fabricators . | . . . . Repair Stations 5 | . 5 . . Recycling Units 1 | . 1 . . Scanalyzers . | . . . . Garrison Access . | . . . . Terminal Hacks 6 | . 5 . 1 Robot Analysis 1 | . 1 . . Prototype ID Bank 1 | . 1 . . Branch Access Points 1 | . 1 . . Hauler Manifests 2 | . 1 . 1 Registered Components 1 | . 1 . . Fabricator Hacks . | . . . . Repair Station Hacks 4 | . 4 . . Scan Component 2 | . 2 . . Repair 2 | . 2 . . Recycling Unit Hacks 1 | . 1 . . Report Inventory 1 | . 1 . . Scanalyzer . | . . . . Garrison Access Hacks . | . . . . Unauthorized Hacks 2 | . 2 . . Terminals 2 | . 2 . . Botnet 2 | . 2 . . Fabricators . | . . . . Repair Stations . | . . . . Recycling Units . | . . . . Scanalyzers . | . . . . Garrison Access . | . . . . Data Cores Recovered . | . . . . Used . | . . . . Hacking Detections 6 | . 5 . 1 Full Trace Events . | . . . . Feedback Events . | . . . . Feedback Blocked . | . . . . Robot Schematics Acquired . | . . . . Robots Built . | . . . . Matter . | . . . . Time . | . . . . Total Robot Build Rating . | . . . . Part Schematics Acquired . | . . . . Parts Built . | . . . . Matter . | . . . . Time . | . . . . Total Part Build Rating . | . . . . Parts Repaired 2 | . 2 . . Time 52 | . 52 . . Parts Recycled . | . . . . Recycled Matter . | . . . . Retrieved Matter . | . . . . Retrieved Components . | . . . . Parts Scanalyzed . | . . . . Part Schematics Acquired . | . . . . Parts Damaged . | . . . . Bothacking | -11 -10 -10 -9 ------------ Run | Scr Mat Min Mat Used RIF Installer . | . . . . Robots Hacked . | . . . . Non-combat . | . . . . Combat . | . . . . Robot Hacks Applied . | . . . . Relay Couplers Released . | . . . . Robots Rewired . | . . . . Allies Hacked . | . . . . Hacks Repelled . | . . . . Allies | -11 -10 -10 -9 -------- Run | Scr Mat Min Mat Total Allies 3 | . . 3 . Largest Group 3 | . . 3 3 Highest-Rated Group 40 | . . 40 40 Highest-Rated Ally 16 | . . 16 16 Total Orders . | . . . . Ally Attacks 33 | . . 12 21 Total Damage 356 | . . 109 247 Kills 10 | . . 2 8 Allies Corrupted . | . . . . Allies Melted . | . . . . Intel | -11 -10 -10 -9 ------- Run | Scr Mat Min Mat Robot Analysis Total 1 | . 1 . . Derelict Logs Recovered . | . . . . Drone Launches . | . . . . Drone Recoveries . | . . . . Exploration | -11 -10 -10 -9 ------------- Run | Scr Mat Min Mat Turns Passed 1810 | 108 949 466 287 Spaces Moved 1482 | 89 631 580 182 Core 21 | 21 . . . Treads . | . . . . Legs 402 | 68 334 . . Wheels . | . . . . Hover 1059 | . 297 580 182 Flight . | . . . . Fastest Speed 50 | 50 56 56 116 Average Speed 80 | 103 90 56 116 Slowest Speed 180 | 120 120 56 180 Overloaded Moves . | . . . . Propulsion Burnouts . | . . . . Robots Hopped . | . . . . Cave-ins Triggered . | . . . . Exploration Rate (%) 43 | 5 66 81 22 Regions Visited 3 Branch Regions 1 Pre-discovered Areas . | . . . . Known Exits Taken 1 | . 1 . . Unknown Exits Taken 2 | 1 . 1 . Scrap Searched 1 | . . 1 . Spaces Dug . | . . . . Terrain Destroyed 81 | . 69 12 . Melee . | . . . . Projectile . | . . . . AOE 81 | . 69 12 . Terrain Rammed . | . . . . Walls Destroyed . | . . . . Machines Disabled . | . . . . Actions | -11 -10 -10 -9 --------- Run | Scr Mat Min Mat Total 1918 | 102 890 692 234 Wait 257 | . 137 87 33 Move 1479 | 88 630 579 182 Hop . | . . . . Pick Up 30 | 7 18 3 2 Fast Attach 14 | 5 9 . . Attach 13 | 1 7 2 3 Detach 2 | . 2 . . Swap 15 | 1 8 5 1 Drop 15 | . 13 1 1 Fire 93 | . 66 15 12 Melee . | . . . . Ram . | . . . . Kick . | . . . . Crush . | . . . . Escape Stasis . | . . . . Rewire . | . . . . Trap . | . . . . Miscellaneous . | . . . . Route ------- -11/Scrapyard -10/Materials (discovered 3 exits: *Mat x2 / *Min) -10/Mines -9/Materials (discovered 1 exit: [*Min]) History --------- Turn | Location | Event 10 | -11/Scrapyard | Discovered new exit (range 15) 109 | -11/Scrapyard | Entered Materials 303 | -10/Materials | Build established: Mutant 487 | -10/Materials | Lost 6 parts (1n1u4w) 667 | -10/Materials | Discovered new exit (range 12) 798 | -10/Materials | Repaired Hover Unit 825 | -10/Materials | Repaired Hover Unit 917 | -10/Materials | Identified exit to Mines 1002 | -10/Materials | Discovered new exit (range 13) 1058 | -10/Materials | Entered Mines 1107 | -10/Mines | Core integrity fell below 50% 1298 | -10/Mines | Received a Rocket Launcher from a helpful Derelict 1342 | -10/Mines | Found a damaged Exp. Sensor Array with a note attached 1343 | -10/Mines | Found Prototype Device 1344 | -10/Mines | Identified Exp. Sensor Array 1379 | -10/Mines | Assisted by bots powering up and referring to "LRC-V3" 1483 | -10/Mines | Discovered new exit (range 4) 1524 | -10/Mines | Entered Materials 1524 | -9/Materials | Accompanied by 3 allies 1524 | -9/Materials | Evolved 2 slots: Utility x2 1571 | -9/Materials | Discovered new exit (range 12) 1811 | -9/Materials | Self-destructed Last Messages --------------- Retrieving manifest data... Found 5 haulers: A-02 Transporter 2x Imp. Assault Rifle 4x Cld. Ion Engine A-02 Transporter 3x Imp. Assault Rifle A-02 Transporter 2x Imp. Assault Rifle 4x Cld. Ion Engine (2 escorts) A-02 Transporter 6x Imp. Flight Unit A-02 Transporter 3x Imp. Targeting Computer 3x Flail 01781_ Hover Unit destroyed. 01799_ ALERT: Hostiles spotted, dispatching reinforcements to Terminal M002. 01800_ T-07 Excavator is excavating. Map ----- +----------------------------------------------------+ | ????????????????????????????????# #?????# #??????? | | ???????????????????????????????##/#####?#/######?? | | ???????????????????????????????# #?# #?? | | ???????????????????????????????# ""#?# """ #?? | | ???????????????????????????????# T"#?# """ #?? | | ???????????????????????????????# ""#?# """ #?? | | ???x???????????????????????????#% !x #?# #?? | | ???????????????????????????????# #?# #?? | | ???????????????????????????????######+######/##### | | ?????????????????????????????????# x | | ?????????????????????????????????# %% | | ???????????????????????????####??# | | ??????????????????????????? #??# ######## ## | | ??????????????????????????? #??# #??????# #? | | ?????????????????????????? #??# #??????# #? | | ?????????????????????????"" #??# #??????# #? | | ?????????????????????????""" #??# #??????# #? | | ??????????????????????????"" #??# X#??"???# % #? | | ???x????????? x??????????"" ??# #?""???# #? | | ?????????????? ?????????? #??# #? ??# #? | | ??????????????? s????????? ???# #?""" ?# #? | | ??????????????x""" ???????#Y#???# # """ ?# ## | | ???????????????""" ####### ##### #?""" # ]] | | ???????????"" """ #??? # ]] | | ??????????a #????? + ]] | | ?????????? u u @ #??????# | | ?????????????##########t##############?#???## | | ?????????????????????# ???????????????## ### | | ?????????????????????#????????????????# | | ??????????????????????????????????##### | | ????????????????????????????????+ | | ????????????????????????????????# | | ????????????????????????????????# ############+### | | ??????????????????????????????????????# | | ??????????????????????????????????????# | | ?????????????????????????????????x????# | | ?????????????????????????????????x????# | | ??????????????????????????????????????# x | | ??????????????????????????????????????# | | ??????????????????????????????????????####+####+## | | ????????xx???????????????????????????????????????? | | ????????x????????????????????????????????????????? | | ?????????????????????????????????????????????????? | | ???????????????????????x?????????????????????????? | | ?????????????????????????????????????????????????? | | ?????????x???????????????????????????????????????? | | ?????????????????????????????????????????????????? | | ?????????????????????????????????????????????????? | | ?????????????????????????????????????????????????? | | ?????????????????????????????????????????????????? | +----------------------------------------------------+ Best States ------------- Heat Dissipation 38 Energy Generation 10 Energy Capacity 250 Matter Stores 300 Matter Capacity 300 Sight Range 16 Robot Scan Range 30 Terrain Scan Density 10 Evasion (%) 53 Targeting Accuracy 5 Item Schematics ----------------- None Robot Schematics ------------------ None Fabricated ------------ Nothing Alien Tech Used ----------------- None Achievements -------------- None Challenges ------------ None Game ------ Seed AlertDisposableWand Manual? 0 Play Time 00:32:10 Cumulative 138.0 hours Start 2020.11.20 @ 13:56:44 End 2020.11.20 @ 14:37:24 Sessions 1 Manual Loads 0 Difficulty Rogue Special Mode Halloween2020/ForbiddenLore Game No. 68 Rogue 68 Adventurer 0 Explorer 0 Win Type - Total 0 Types 0/0/0/0/0/0/0/0/0 Lore% 38 Gallery% 34 Achievement% 28 Wizard Run 0 Options --------- ASCII 0 Keyboard 1 Movement Arrows Keybinds 0 Fullscreen 1 Font 18/SmallcapsGlow Map View 76x50 Tactical HUD 1 Map Filters NONE Filters NONE Steam 1 RUN: e1c6ca89-06dd-4be0-ae27-df2f5c6531b2